[Event "III Menorca Open-A 2024"]
[Site "Ciutadella Menorca"]
[Date "2024.04.04"]
[Round "5.4"]
[White "Van Foreest, Jorden"]
[Black "Krzyzanowski, Marcin"]
[Result "1/2-1/2"]
[ECO "B86"]
[WhiteElo "2672"]
[BlackElo "2510"]
[Annotator "TA"]
[PlyCount "45"]
[EventDate "2024.04.02"]
[EventType "swiss"]
[EventCountry "ESP"]
[SourceTitle "playchess.com"]
[Source "ChessBase"]
[SourceQuality "1"]
[TimeControl "5400+30"]

{[%evp 16,45,16,0,12,0,0,0,2,8,8,13,8,0,0,-4,12,5,6,18,13,0,4,0,0,0,17,0,0,-11,0,-29]} 1. e4 {[%emt 0:00:08]} c5 {[%emt 0:00:09]} 2. Nf3 {[%emt 0:00:10]} d6 {[%emt 0:00:06]} 3. d4 {[%emt 0:00:11]} cxd4 {[%emt 0:00:06]} 4. Nxd4 {[%emt 0:00:07]} Nf6 {[%emt 0:00:03]} 5. Nc3 {[%emt 0:00:12]} a6 {[%emt 0:00:07]} 6. Bc4 {[%emt 0:00:07]} e6 {[%emt 0:00:07]} 7. a4 {[%emt 0:00:22][%cal Ba2a4,Ba4a5][%mdl 32]} Be7 {[%emt 0:00:09]} 8. O-O {[%emt 0:00:47]} O-O {[%emt 0:00:26]} 9. Be3 {[%emt 0:00:39] The position is equal.} Bd7 {[%emt 0:00:43]} 10. a5 {[%emt 0:02:50]} Nc6 {[%emt 0:00:31]} 11. Nxc6 {[%emt 0:01:50]} Bxc6 {[%emt 0:00:07]} 12. Re1 {[%emt 0:00:20]} Rc8 {[%emt 0:03:48]} (12... Bxe4 $2 13. Nxe4 Nxe4 14. Bb6 Nxf2 15. Bxd8 $18 (15. Bxf2 d5 $18) (15. Kxf2 Qc8 $18)) 13. Bf1 {[%emt 0:00:15]} Qc7 {[%emt 0:05:33]} (13... Bxe4 $2 14. Bb6 Qe8 15. Nxe4 $18) (13... Nxe4 $2 {perishes.} 14. Nxe4 Bxe4 15. Bb6 $18) 14. Ba7 {[%emt 0:00:18]} Rfe8 {[%emt 0:04:02]} 15. h3 {[%emt 0:09:34]} d5 {[%emt 0:07:18]} 16. exd5 {[%emt 0:03:34]} Nxd5 {[%emt 0:00:53]} 17. Nxd5 {[%emt 0:04:08]} Bxd5 {[%emt 0:00:08] [#]} 18. c4 {[%emt 0:03:01]} Bc6 {[%emt 0:02:03]} (18... Bxc4 $2 {is the wrong capture.} 19. Rc1 $18) 19. Qd2 {[%emt 0:07:20]} Rcd8 {[%emt 0:13:27]} 20. Qe3 {[%emt 0:00:21]} Rd7 {[%emt 0:01:26]} 21. Bb6 {[%emt 0:01:25]} Qd6 {[%emt 0:02:33]} 22. b3 {[%emt 0:01:12]} h6 {[%emt 0:01:19]} 23. Ra2 {[%emt 0:19:19] An uneventful encounter.   Weighted Error Value: White=0.06 (flawless) /Black=0.04 (flawless) .  Inaccurate:     	White=1     	---        OK:         	White=5     	Black=4} 1/2-1/2

[Event "III Menorca Open-A 2024"]
[Site "Ciutadella Menorca"]
[Date "2024.04.04"]
[Round "5.5"]
[White "Alekseenko, Kirill"]
[Black "Alexakis, Dimitris"]
[Result "1-0"]
[ECO "B47"]
[WhiteElo "2650"]
[BlackElo "2443"]
[Annotator "TA"]
[PlyCount "79"]
[EventDate "2024.04.02"]
[EventType "swiss"]
[EventCountry "ESP"]
[SourceTitle "playchess.com"]
[Source "ChessBase"]
[SourceQuality "1"]
[TimeControl "5400+30"]

{[%evp 9,79,13,41,26,27,17,14,20,19,13,25,17,55,13,15,-10,8,0,0,0,-6,0,20,0,0,0,0,-26,-41,-56,181,25,33,29,19,28,44,0,-22,-111,265,280,270,275,577,509,626,607,673,534,832,832,6736,6179,1815,793,782,774,706,571,500,441,574,538,561,504,585,579,1204,1204,29995,29996]} 1. e4 {[%emt 0:00:04]} c5 {[%emt 0:08:22]} 2. Nf3 {[%emt 0:00:17]} e6 {[%emt 0:00:11]} 3. d4 {[%emt 0:01:04]} cxd4 {[%emt 0:00:05]} 4. Nxd4 {[%emt 0:00:03]} Nc6 {[%emt 0:00:06]} 5. Nc3 {[%emt 0:00:44][%cal Bb1c3,Bc3b5,Bb5d4,Bd4e2,Be2g3,Bg3h5][%mdl 32]} Qc7 {[%emt 0:00:07]} 6. Ncb5 {[%emt 0:00:28]} Qb8 {[%emt 0:00:31]} 7. Bd3 {[%emt 0:00:36]} Nf6 {[%emt 0:02:00]} 8. O-O {[%emt 0:01:38] The position is equal.} a6 {[%emt 0:09:50]} 9. Nxc6 {[%emt 0:00:27]} bxc6 {[%emt 0:00:18]} 10. Nd4 {[%emt 0:00:26]} e5 {[%emt 0:01:45]} 11. Ne2 {[%emt 0:01:48]} Be7 {[%emt 0:01:53]} 12. Kh1 {[%emt 0:09:07]} O-O {[%emt 0:04:34]} 13. f4 {[%emt 0:01:17][%cal Bf2f4,Bf4f5][%mdl 32]} d5 {[%emt 0:24:02]} 14. Ng3 {[%emt 0:03:23]} Bd6 {[%emt 0:06:15]} 15. f5 {[%emt 0:02:09]} Qc7 {[%emt 0:00:38]} 16. Bg5 {[%emt 0:05:05] Hoping for Bxf6.} Be7 {[%emt 0:00:32]} 17. Bxf6 {[%emt 0:04:57]} Bxf6 {[%emt 0:03:05]} 18. Nh5 {[%emt 0:00:04]} Bg5 {[%emt 0:03:28]} 19. Qf3 {[%emt 0:06:23]} Bb7 $2 {[%emt 0:08:52] [#]} (19... d4 $1 $15 {keeps the upper hand.}) 20. h4 $1 {[%emt 0:14:28][%mdl 512]} Bh6 $11 {[%emt 0:05:25]} (20... Bxh4 $2 21. Qg4 $18) (20... Bf6 21. Nxf6+) 21. g4 $36 {[%emt 0:11:47][%mdl 2048] g5 is the strong threat. White is pushing.} f6 {[%emt 0:04:01]} 22. Rg1 {[%emt 0:04:50][%cal Bf1g1,Bg1g5,Bg5g7][%mdl 32] aiming for g5.} Qe7 $1 {[%emt 0:02:43] [#]} 23. g5 $1 {[%emt 0:01:54]} fxg5 {[%emt 0:00:09]} 24. Qg4 {[%emt 0:00:21]} (24. hxg5 $11 {remains equal.} Bxg5 25. Nxg7) 24... g6 $2 {[%emt 0:05:33][%mdl 8192] Black is on the road to losing.} (24... gxh4 $17 {stays on course. White must now prevent ...Kh8.} 25. f6 Rxf6 26. Nxf6+ Qxf6) 25. hxg5 $18 {[%emt 0:04:28]} gxh5 {[%emt 0:03:26]} 26. Qxh5 {[%emt 0:00:06]} (26. gxh6+ $2 hxg4 27. Rxg4+ Kh8 $19) 26... Bxg5 {[%emt 0:02:49]} (26... Bg7 27. Raf1 Qe8) 27. Rxg5+ {[%emt 0:01:43]} Kh8 {[%emt 0:03:20]} 28. Rag1 {[%emt 0:00:33]} Rf7 {[%emt 0:00:00]} 29. Kh2 {[%emt 0:08:15]} Raf8 {[%emt 0:00:00]} 30. Qg4 {[%emt 0:00:50]} Qe8 {[%emt 0:00:00]} 31. Rg7 {[%emt 0:00:25][%cal Of5f6]} Bc8 {[%emt 0:01:03]} 32. Qg5 {[%emt 0:00:24]} (32. Qg3 $142 Qd8 33. f6 (33. Qxe5 $2 {loses.} Qh4+ 34. Kg2 Rxg7+ $19)) 32... Bxf5 {[%emt 0:00:31]} 33. exf5 {[%emt 0:02:28] Qh6 would kill now.} e4 {[%emt 0:00:09][%cal Be5e4,Be4e3,Be3e2][%mdl 32]} 34. Rxf7 {[%emt 0:00:14]} (34. Bxa6 $2 {perishes.} Qe5+ (34... Rxf5 35. Rxh7+ Kxh7 36. Qg7#) 35. Kh3 Rxg7 (35... Qxg7 $2 36. b4 $19) 36. Qxg7+ Qxg7 37. Rxg7 Kxg7 $19) 34... Rxf7 {[%emt 0:00:06]} 35. Bf1 {[%emt 0:04:22]} e3 {[%emt 0:00:28]} 36. Qf4 {[%emt 0:01:33]} c5 {[%emt 0:00:37] Prevents Qd4+} 37. Be2 {[%emt 0:00:55][%cal Oe2h5] Threatening mate with Bh5!} Rf6 {[%emt 0:00:58]} 38. Rg3 {[%emt 0:02:32]} d4 {[%emt 0:00:16]} 39. Bc4 {[%emt 0:00:41] Intending Qg5 and mate.} e2 {[%emt 0:00:33]} 40. Qg5 {[%emt 0:00:04] Weighted Error Value: White=0.37/Black=0.85.  Loses game:     	---       	Black=2      Mistake:       	White=3     	Black=1      Inaccurate:     	White=2     	Black=5      OK:         	White=9     	Black=10     Best:        	White=3     	Black=2      Strong:       	---       	Black=1} 1-0

[Event "III Menorca Open-A 2024"]
[Site "Ciutadella Menorca"]
[Date "2024.04.04"]
[Round "5.6"]
[White "Gorshtein, Ido"]
[Black "Warmerdam, Max"]
[Result "0-1"]
[ECO "E71"]
[WhiteElo "2540"]
[BlackElo "2628"]
[Annotator "TA"]
[PlyCount "54"]
[EventDate "2024.04.02"]
[EventType "swiss"]
[EventCountry "ESP"]
[SourceTitle "playchess.com"]
[Source "ChessBase"]
[SourceQuality "1"]
[TimeControl "5400+30"]

{[%evp 11,54,30,49,34,54,37,56,62,56,58,58,47,59,61,64,21,41,14,50,2,7,0,3,-46,-45,-63,-48,-83,-70,-124,-156,-171,-150,-187,-196,-193,-187,-212,-208,-389,-388,-376,-383,-361,-365]} 1. d4 {[%emt 0:00:03]} Nf6 {[%emt 0:01:30]} 2. c4 {[%emt 0:00:04]} g6 {[%emt 0:00:06]} 3. Nc3 {[%emt 0:00:27]} Bg7 {[%emt 0:00:05]} 4. e4 {[%emt 0:00:08]} d6 {[%emt 0:00:04]} 5. h3 {[%emt 0:03:11]} O-O {[%emt 0:00:25]} 6. Be3 {[%emt 0:00:04]} Na6 {[%emt 0:00:07]} 7. g4 {[%emt 0:06:56]} c6 {[%emt 0:00:31]} 8. Qd2 {[%emt 1:23:37]} Rb8 {[%emt 0:03:04][%cal Ob7b5]} 9. f3 {[%emt 0:00:00] White is slightly better.} Nc7 {[%emt 0:00:52]} 10. Nge2 {[%emt 0:00:00]} b5 {[%emt 0:00:26]} 11. cxb5 {[%emt 0:00:00]} Nxb5 {[%emt 0:00:07]} 12. Nxb5 {[%emt 0:00:00]} Rxb5 {[%emt 0:00:05]} 13. Ng3 {[%emt 0:00:00]} Rb8 {[%emt 0:04:39]} 14. Rc1 {[%emt 0:00:00]} Qb6 {[%emt 0:03:18]} 15. Rc2 {[%emt 0:00:00]} (15. b3 $14 {is more appropriate.}) 15... Nd7 $11 {[%emt 0:02:26]} 16. h4 {[%emt 0:00:00]} c5 {[%emt 0:03:55]} 17. dxc5 {[%emt 0:00:00]} (17. Ne2 $11 {is superior.}) 17... dxc5 $15 {[%emt 0:02:22][%cal Od7e5] Strongly threatening ...Ne5!} 18. Kf2 {[%emt 0:00:00]} Rd8 {[%emt 0:07:45][%cal Od7e5] And now ...Ne5! would win.} 19. Kg2 {[%emt 0:00:00]} Bxb2 {[%emt 0:04:20]} 20. h5 {[%emt 0:00:00]} (20. Be2 $15) 20... Ne5 $17 {[%emt 0:05:51]} 21. Qf2 {[%emt 0:00:00]} Bd4 {[%emt 0:00:31][%cal Oc8g4]} 22. hxg6 {[%emt 0:00:00]} fxg6 {[%emt 0:00:49]} 23. Be2 {[%emt 0:00:00]} Rf8 {[%emt 0:03:12] [#] Hoping for ...Nxg4.} 24. Qg1 {[%emt 0:00:00]} Rf7 {[%emt 0:05:51] Threatens to win with ...Ba6.} 25. Rd2 $2 {[%emt 0:00:00]} (25. Rxc5 Bxc5 26. Bxc5) 25... Ba6 $19 {[%emt 0:00:54] White must now prevent ...Bxe2. Black is winning.} 26. Bxd4 {[%emt 0:00:00]} cxd4 {[%emt 0:01:12]} 27. Bd1 {[%emt 0:00:00]} Rd8 {[%emt 0:03:08] Weighted Error Value: White=0.30/Black=0.09 (flawless) .  Mistake:       	White=4     	---        Inaccurate:     	White=3     	Black=1      OK:         	White=5     	Black=7      Best:        	White=1     	Black=3} 0-1

[Event "III Menorca Open-A 2024"]
[Site "Ciutadella Menorca"]
[Date "2024.04.04"]
[Round "5.7"]
[White "Agmanov, Zhandos"]
[Black "Aryan Chopra"]
[Result "0-1"]
[ECO "B12"]
[WhiteElo "2458"]
[BlackElo "2630"]
[Annotator "TA"]
[PlyCount "76"]
[EventDate "2024.04.02"]
[EventType "swiss"]
[EventCountry "ESP"]
[SourceTitle "playchess.com"]
[Source "ChessBase"]
[SourceQuality "1"]
[TimeControl "5400+30"]

{[%evp 9,76,20,9,5,10,-21,30,26,14,0,-13,0,18,-4,0,0,0,0,0,0,0,0,10,-14,-15,-13,-24,-39,-44,-43,-37,-43,-36,-45,-43,-30,-16,-36,-33,-20,-21,-100,-87,-139,-133,-102,-114,-123,-38,-44,-45,-45,-49,-39,-57,-53,0,-44,-47,-46,-34,-66,-62,-83,-83,-134,-33,-421,-418]} 1. e4 {[%emt 0:06:44]} c6 {[%emt 0:00:04]} 2. d4 {[%emt 0:03:04]} d5 {[%emt 0:00:06]} 3. e5 {[%emt 0:00:04]} Bf5 {[%emt 0:00:06]} 4. h4 {[%emt 0:00:05]} h5 {[%emt 0:00:15]} 5. Bd3 {[%emt 0:00:06]} Bxd3 {[%emt 0:00:17]} 6. Qxd3 {[%emt 0:00:05][%cal Oe5e6] Black should prevent e6!} Qa5+ {[%emt 0:03:43]} 7. b4 {[%emt 0:01:34]} Qa6 {[%emt 0:17:44] [#]} (7... Qxb4+ $142 8. Nd2 e6) 8. e6 $1 $11 {[%emt 0:00:09] White has an edge.} Qxd3 {[%emt 0:01:03]} (8... fxe6 $2 {is the wrong capture.} 9. Qg6+ Kd8 10. Nf3 $18 (10. Qxe6 Qc4 $16)) 9. exf7+ {[%emt 0:01:38]} Kxf7 {[%emt 0:00:04]} 10. cxd3 {[%emt 0:00:09]} e6 {[%emt 0:03:21][%cal Ob8d7]} 11. Bd2 {[%emt 0:03:42]} Nd7 {[%emt 0:08:05]} 12. Nf3 {[%emt 0:03:27]} Be7 {[%emt 0:03:04]} 13. Bc3 {[%emt 0:26:05]} Nh6 {[%emt 0:05:06][%cal Bg8h6,Bh6g4,Bg4f2][%mdl 32]} 14. Nbd2 {[%emt 0:00:20]} Bf6 {[%emt 0:07:06]} 15. Nb3 {[%emt 0:10:26]} Ng4 {[%emt 0:13:57]} 16. Kd2 {[%emt 0:02:41]} Nxf2 {[%emt 0:03:43]} 17. Rhf1 {[%emt 0:00:42]} Ng4 {[%emt 0:00:04]} 18. Ne5+ {[%emt 0:04:53]} Ke8 $1 {[%emt 0:00:17]} 19. Nxd7 {[%emt 0:05:26]} Kxd7 {[%emt 0:00:07]} 20. Nc5+ {[%emt 0:00:09]} Kc7 {[%emt 0:05:31]} 21. Rae1 {[%emt 0:01:53]} Rae8 $36 {[%emt 0:02:59][%mdl 2048] Black has some pressure.} 22. g3 {[%emt 0:02:22]} b6 {[%emt 0:03:28]} 23. Nxe6+ {[%emt 0:01:27]} Kd6 {[%emt 0:00:04]} 24. Nf4 {[%emt 0:05:29]} Rxe1 {[%emt 0:00:07]} 25. Rxe1 {[%emt 0:00:10] [#]} (25. Kxe1 $11 g5 26. hxg5 Bxg5 27. Bd2) 25... g5 $1 $17 {[%emt 0:00:25]} 26. Ng6 {[%emt 0:09:44]} (26. Ng2 $142) 26... Rg8 {[%emt 0:03:37]} 27. Ne5 {[%emt 0:00:01]} gxh4 {[%emt 0:01:36]} 28. gxh4 {[%emt 0:01:06]} Bxh4 {[%emt 0:00:20]} (28... Nf2 $17 {[%cal Og8g2] aiming for ...Rg2!} 29. Nf7+ Kd7 30. Ne5+ Kc7) 29. Rh1 $15 {[%emt 0:00:25]} Bg5+ {[%emt 0:00:18]} 30. Ke2 {[%emt 0:04:14]} Nf6 {[%emt 0:00:14]} 31. Kf3 {[%emt 0:01:33]} Rf8 {[%emt 0:05:41] Threatens to win with ...Ne4+.} 32. Ng6 {[%emt 0:00:02]} Rg8 {[%emt 0:01:53]} 33. Ne5 {[%emt 0:00:05]} Kc7 {[%emt 0:06:38]} 34. Be1 {[%emt 0:00:47]} Kb7 {[%emt 0:01:25]} 35. a3 {[%emt 0:06:32]} Bc1 {[%emt 0:02:07][%cal Oc1b2] Strongly threatening ...Bb2!} 36. a4 {[%emt 0:00:34]} Bb2 {[%emt 0:00:55]} 37. Bf2 {[%emt 0:00:19] [#]} (37. Rh4 $142) 37... Rg5 {[%emt 0:01:52]} ({Better is} 37... Bc3 $1 $17 38. Bh4 Ng4 39. Nxc6 a5 (39... Kxc6 40. Rc1 $11)) 38. Rb1 $2 {[%emt 0:00:45][%mdl 8192]} (38. Be3 $15 Rf5+ 39. Ke2) 38... Rf5+ {[%emt 0:00:08] Weighted Error Value: White=0.32/Black=0.14 (very precise) .  Loses game:     	White=1     	---        Mistake:       	White=3     	Black=3      Inaccurate:     	White=3     	---        OK:         	White=14    	Black=11     Best:        	White=2     	Black=5      Strong:       	---       	Black=2} 0-1

[Event "III Menorca Open-A 2024"]
[Site "Ciutadella Menorca"]
[Date "2024.04.04"]
[Round "5.8"]
[White "Dardha, Daniel"]
[Black "Audi Ameya"]
[Result "1-0"]
[ECO "E91"]
[WhiteElo "2628"]
[BlackElo "2387"]
[Annotator "TA"]
[PlyCount "83"]
[EventDate "2024.04.02"]
[EventType "swiss"]
[EventCountry "ESP"]
[SourceTitle "playchess.com"]
[Source "ChessBase"]
[SourceQuality "1"]
[TimeControl "5400+30"]

{[%evp 14,83,25,37,48,44,54,50,54,54,59,60,50,53,62,47,59,64,63,60,62,37,260,130,156,122,116,122,110,117,113,119,120,117,202,210,208,175,170,147,178,155,153,151,191,186,187,177,181,165,193,190,219,212,354,336,818,414,747,675,963,1134,1137,1117,1103,1239,1203,1214,1109,1109,6283,6275]} 1. c4 {[%emt 0:00:05]} g6 {[%emt 0:00:04]} 2. Nc3 {[%emt 0:01:17]} c5 {[%emt 0:00:29]} 3. e3 {[%emt 0:00:37]} Bg7 {[%emt 0:00:28]} 4. d4 {[%emt 0:00:36]} cxd4 {[%emt 0:06:00]} 5. exd4 {[%emt 0:00:10]} Nf6 {[%emt 0:00:03]} 6. d5 {[%emt 0:00:27]} O-O {[%emt 0:02:09]} 7. Nf3 {[%emt 0:03:33]} d6 {[%emt 0:05:25]} 8. Be2 {[%emt 0:04:32]} Bg4 {[%emt 0:08:32]} 9. O-O {[%emt 0:01:22]} Nbd7 {[%emt 0:00:04]} 10. Be3 {[%emt 0:01:42]} Qa5 {[%emt 0:10:22] White is slightly better.} 11. Rc1 {[%emt 0:08:47]} Rfc8 {[%emt 0:01:31]} 12. b3 {[%emt 0:00:29]} a6 {[%emt 0:04:13]} 13. Nd4 {[%emt 0:03:30]} Bxe2 {[%emt 0:04:18]} 14. Qxe2 {[%emt 0:00:04]} Re8 {[%emt 0:03:43]} 15. Rfd1 {[%emt 0:06:26]} Rac8 {[%emt 0:02:28]} 16. Bd2 {[%emt 0:05:12]} Qc5 {[%emt 0:04:12]} 17. Be1 {[%emt 0:05:07]} Nxd5 $2 {[%emt 0:09:10]} 18. Nxd5 {[%emt 0:03:47]} (18. cxd5 $18 {[%cal Od4e6] Threatens to win with Ne6!} Qa7 (18... Bxd4 $2 19. Qg4 $18) 19. Qd3) 18... e6 $16 {[%emt 0:00:02]} 19. Nc3 {[%emt 0:16:27][%cal Bd5c3,Bc3e4,Be4d6][%mdl 32]} (19. b4 Qa7 $16) 19... Bxd4 {[%emt 0:00:07]} 20. Ne4 {[%emt 0:00:11] Wards off Nf6} Qe5 {[%emt 0:00:46] [#]} 21. Rxd4 {[%emt 0:01:05][%mdl 512]} Qxd4 {[%emt 0:00:05]} 22. Rd1 $1 {[%emt 0:00:25]} Qg7 {[%emt 0:10:37]} 23. Nxd6 {[%emt 0:04:21]} Nf8 {[%emt 0:03:20]} 24. Qf3 $18 {[%emt 0:03:16][%cal Oe1c3] Black must now prevent Bc3!} ({Don't play} 24. Nxe8 Rxe8 25. Qf3 Qe5) 24... f5 {[%emt 0:04:57]} 25. Bc3 {[%emt 0:04:08]} Qe7 {[%emt 0:01:45]} 26. Qe3 {[%emt 0:05:18][%cal Oe3e5] Intending Qe5! and mate.} g5 {[%emt 0:02:16]} 27. Nxe8 {[%emt 0:02:36]} Rxe8 {[%emt 0:00:03] Black is weak on the dark squares} 28. h3 $40 {[%emt 0:02:48][%mdl 128] White goes for the king. White has more active pieces.} Rd8 {[%emt 0:04:20]} 29. Rxd8 {[%emt 0:02:12]} Qxd8 {[%emt 0:00:03][%mdl 4096] Endgame. KQB-KQN} 30. Qe5 {[%emt 0:00:17]} Qe7 {[%emt 0:04:17] [#] Dodges Qg7+} 31. Qh8+ $1 {[%emt 0:00:13]} Kf7 {[%emt 0:00:02]} 32. Bg7 {[%emt 0:02:26]} Qa3 {[%emt 0:00:04] [#]} 33. g3 $1 {[%emt 0:00:41]} ({Inferior is} 33. Bxf8 Qc1+ 34. Kh2 Qf4+ 35. Kh1 Qc1+ 36. Kh2 Qf4+ 37. Kh1 Qc1+ 38. Kh2 $11) 33... Qc1+ {[%emt 0:02:08]} (33... Ke8 $142 34. Kg2 b5 35. cxb5 axb5) 34. Kg2 {[%emt 0:01:12]} Nd7 {[%emt 0:00:02]} ({Stronger than} 34... Ng6 35. Qxh7 Nf8 36. Bxf8+ Kxf8 37. Qxb7 $18) (34... Qa3 35. Bxf8 Qxf8 36. Qxh7+ Kf6 37. Qxb7 Qa3) 35. Qxh7 {[%emt 0:03:16] White wants to mate with Be5+.} Ke8 {[%emt 0:00:16]} (35... Nf8 $142 36. Bxf8+ Kxf8 37. Qxb7 Qa3) 36. Bh6 {[%emt 0:01:29] aiming for Qg6+. White is clearly winning.} Kd8 {[%emt 0:02:55]} 37. Qg8+ {[%emt 0:00:07]} Kc7 {[%emt 0:00:03]} 38. Bxg5 {[%emt 0:00:08]} Qe1 {[%emt 0:00:43]} 39. Qd8+ {[%emt 0:00:15]} Kc6 {[%emt 0:00:22]} 40. Qc8+ {[%emt 0:00:38]} Kd6 {[%emt 0:00:02]} 41. Qxb7 {[%emt 0:00:16]} Qa5 {[%emt 0:01:00] Dodges c5+} 42. b4 {[%emt 0:00:55] Weighted Error Value: White=0.31/Black=0.32.  Loses game:     	---       	Black=1      Mistake:       	White=1     	Black=4      Inaccurate:     	White=1     	---        OK:         	White=13    	Black=12     Best:        	---       	Black=2      Strong:       	White=1     	---        Brilliant:      	White=1     	---} 1-0

[Event "III Menorca Open-A 2024"]
[Site "Ciutadella Menorca"]
[Date "2024.04.04"]
[Round "5.9"]
[White "Seemann, Jakub"]
[Black "Chigaev, Maksim"]
[Result "1/2-1/2"]
[ECO "C55"]
[WhiteElo "2465"]
[BlackElo "2617"]
[Annotator "TA"]
[PlyCount "97"]
[EventDate "2024.04.02"]
[EventType "swiss"]
[EventCountry "ESP"]
[SourceTitle "playchess.com"]
[Source "ChessBase"]
[SourceQuality "1"]
[TimeControl "5400+30"]

{[%evp 22,97,37,19,43,3,8,0,0,0,0,0,0,0,0,0,0,0,0,0,0,0,16,10,2,0,0,0,0,0,6,0,0,0,26,29,19,19,28,18,18,17,26,24,39,19,19,15,26,26,29,28,114,114,114,114,114,75,75,75,75,75,75,75,75,75,75,75,75,75,75,75,75,8,8,0,0,0]} 1. e4 {[%emt 0:00:07]} e5 {[%emt 0:00:08]} 2. Nf3 {[%emt 0:00:23]} Nc6 {[%emt 0:00:05]} 3. Bc4 {[%emt 0:00:09]} Nf6 {[%emt 0:00:07]} 4. d3 {[%emt 0:00:05]} h6 {[%emt 0:00:06]} 5. O-O {[%emt 0:03:27]} d6 {[%emt 0:01:20]} 6. c3 {[%emt 0:00:31]} g5 {[%emt 0:00:13] C55: Two Knights: 4 d3, 4 d4 exd4 5 e5 and Max Lange Attack.} 7. Nbd2 {[%emt 0:00:42]} Bg7 {[%emt 0:00:24]} 8. Bb3 {[%emt 0:04:08]} a5 $1 {[%emt 0:03:41][%mdl 4] outshines the older 8...0-0.} 9. Nc4 {[%emt 0:05:40]} b5 {[%emt 0:01:11]} 10. Ne3 {[%emt 0:02:33]} a4 {[%emt 0:00:07]} 11. Bc2 {[%emt 0:00:07]} O-O $146 {[%emt 0:00:07]} ({Predecessor:} 11... d5 12. exd5 Nxd5 13. d4 Nxe3 14. Bxe3 exd4 15. Nxd4 Nxd4 16. Bxd4 Bxd4 17. Re1+ Kf8 18. cxd4 {½-½ Ostrovskiy,A (2425)-Hilby,C (2433) Charlotte CCCSA Summer GM 2020 (6)}) 12. Re1 {[%emt 0:06:21]} Re8 {[%emt 0:01:48]} 13. h3 {[%emt 0:06:55]} d5 {[%emt 0:08:20]} 14. exd5 {[%emt 0:06:38]} Nxd5 {[%emt 0:00:07]} 15. d4 {[%emt 0:12:04]} e4 {[%emt 0:09:09]} 16. Ne5 {[%emt 0:02:35]} Nxe3 {[%emt 0:10:13]} 17. Bxe3 {[%emt 0:01:26]} Bxe5 {[%emt 0:03:04]} 18. dxe5 {[%emt 0:00:13]} Qxd1 {[%emt 0:00:07]} 19. Raxd1 {[%emt 0:01:04]} Rxe5 {[%emt 0:01:07]} 20. Bd4 {[%emt 0:02:21]} Nxd4 {[%emt 0:01:00]} 21. cxd4 {[%emt 0:00:43]} Re7 {[%emt 0:01:23]} 22. Bxe4 {[%emt 0:08:53]} Ra6 {[%emt 0:08:23]} 23. Bd3 {[%emt 0:00:06]} Rxe1+ {[%emt 0:00:06]} 24. Rxe1 {[%emt 0:00:02]} Be6 {[%emt 0:00:08]} 25. Bxb5 {[%emt 0:04:09]} Ra5 {[%emt 0:00:39]} 26. Bc6 {[%emt 0:00:30]} Bxa2 {[%emt 0:01:19]} 27. Re7 {[%emt 0:00:10]} a3 {[%emt 0:00:05]} ({But not} 27... Bd5 $2 28. Re5 $18 (28. Rxc7 Bxc6 29. Rxc6 Rb5 $14)) 28. bxa3 {[%emt 0:00:23]} (28. Rxc7 $2 {is the wrong capture.} axb2 29. Be4 Bd5 $19 (29... b1=B $2 30. Rc8+ Kg7 31. Ra8 $19) (29... b1=N $2 30. d5 $19) (29... b1=R+ $2 30. Bxb1 Bxb1 31. Rc1 $19)) 28... Rxa3 {[%emt 0:00:13]} 29. Rxc7 {[%emt 0:00:11]} Rc3 {[%emt 0:00:28]} 30. Rc8+ {[%emt 0:02:17]} Kg7 {[%emt 0:00:04]} 31. Bb7 {[%emt 0:00:29]} Rd3 {[%emt 0:05:50]} 32. Rd8 {[%emt 0:00:37]} Kf6 {[%emt 0:04:00]} 33. Bf3 {[%emt 0:04:57]} Be6 {[%emt 0:02:56]} 34. Kh2 {[%emt 0:01:23]} Ke7 {[%emt 0:00:21]} 35. Rh8 {[%emt 0:00:08]} Rxd4 {[%emt 0:00:06]} 36. Rxh6 {[%emt 0:00:04]} Rh4 {[%emt 0:00:43]} (36... Rb4 $11 {remains equal.}) 37. Rxh4 $16 {[%emt 0:02:32]} gxh4 {[%emt 0:00:03]} 38. g3 {[%emt 0:01:33]} hxg3+ {[%emt 0:00:21]} 39. Kxg3 {[%emt 0:00:01]} f6 {[%emt 0:01:03]} 40. h4 {[%emt 0:00:36]} Kf8 {[%emt 0:00:07]} 41. Bg4 {[%emt 0:00:06]} Bf7 {[%emt 0:00:13]} 42. Kf4 {[%emt 0:00:03]} Kg7 {[%emt 0:00:05]} 43. Kf5 {[%emt 0:00:03]} Bg8 {[%emt 0:00:25]} 44. f4 {[%emt 0:01:02]} Bf7 {[%emt 0:00:13]} 45. h5 {[%emt 0:00:13]} Bg8 {[%emt 0:00:05]} 46. Bf3 {[%emt 0:01:04]} Bb3 {[%emt 0:00:22]} 47. Be4 {[%emt 0:00:26]} ({White must play} 47. h6+ $1 $16 Kxh6 48. Kxf6) 47... Kf7 $1 $11 {[%emt 0:02:03]} 48. Kg4 {[%emt 0:00:33]} Kg7 {[%emt 0:00:25]} 49. Kf5 {[%emt 0:01:05]} 1/2-1/2